{"text_format":"1","workbook":"xlsx","n_sheets":5,"sheets":["Dashboard","Cuentas","Categorias","Prestamos","Movimientos"],"not_rendered":{"charts":0,"images":0,"macros":1,"external_links":0,"defined_names":0,"comments":0,"pivot_tables":0},"unopened":[],"bounds":{"document_bytes":16777216,"sheet_cells":100000,"rows_first":2000,"rows_last":500,"rows_between":2000,"halvings":0,"cell_chars":16384,"cell_head_chars":4096},"cells_cut":0,"cells_raw":0,"read":"whole","date_system":"1900"}

{"sheet":"Dashboard","index":0,"n_rows":1,"n_cols":3,"rows_kept":1,"cut":false,"hidden":false,"merged":[[0,0,3,1],[0,2,3,3]]}
["Débito",null,{"$f":"SUM(Cuentas!G2+Cuentas!G3+Cuentas!G4+Cuentas!G5)","v":624.89}]

{"sheet":"Cuentas","index":1,"n_rows":10,"n_cols":10,"rows_kept":10,"cut":false,"hidden":false,"merged":[]}
["Id_Cuenta","Nombre_cuenta","Tipo_cuenta","Banco_o_entidad","Saldo_inicial","Fecha_saldo_inicial","Saldo_actual","Dia_corte","Dia_pago","Limite_credito"]
[{"$f":"LEFT(tblCuentas[[#This Row],[Tipo_cuenta]],2)&\"_\"&LEFT(tblCuentas[[#This Row],[Nombre_cuenta]],5)","v":"Ef_Carte"},"Cartera","Efectivo",null,0,"2025-12-01",{"$f":"tblCuentas[[#This Row],[Saldo_inicial]]+SUMIFS(tblMovimientos[Monto],tblMovimientos[Cuenta_destino],tblCuentas[[#This Row],[Id_Cuenta]])-SUMIFS(tblMovimientos[Monto],tblMovimientos[Cuenta_origen],tblCuentas[[#This Row],[Id_Cuenta]])","v":0}]
[{"$f":"LEFT(tblCuentas[[#This Row],[Tipo_cuenta]],2)&\"_\"&LEFT(tblCuentas[[#This Row],[Nombre_cuenta]],5)","v":"Dé_BanCo"},"BanCoppel","Débito","Coppel",0,"2025-12-01",{"$f":"tblCuentas[[#This Row],[Saldo_inicial]]+SUMIFS(tblMovimientos[Monto],tblMovimientos[Cuenta_destino],tblCuentas[[#This Row],[Id_Cuenta]])-SUMIFS(tblMovimientos[Monto],tblMovimientos[Cuenta_origen],tblCuentas[[#This Row],[Id_Cuenta]])","v":0}]
[{"$f":"LEFT(tblCuentas[[#This Row],[Tipo_cuenta]],2)&\"_\"&LEFT(tblCuentas[[#This Row],[Nombre_cuenta]],5)","v":"Dé_BanAz"},"BanAzteca","Débito","Banco Azteca",0,"2025-12-01",{"$f":"tblCuentas[[#This Row],[Saldo_inicial]]+SUMIFS(tblMovimientos[Monto],tblMovimientos[Cuenta_destino],tblCuentas[[#This Row],[Id_Cuenta]])-SUMIFS(tblMovimientos[Monto],tblMovimientos[Cuenta_origen],tblCuentas[[#This Row],[Id_Cuenta]])","v":0}]
[{"$f":"LEFT(tblCuentas[[#This Row],[Tipo_cuenta]],2)&\"_\"&LEFT(tblCuentas[[#This Row],[Nombre_cuenta]],5)","v":"Dé_Stori"},"StoriCuenta","Débito","Stori",624.5,"2025-12-01",{"$f":"tblCuentas[[#This Row],[Saldo_inicial]]+SUMIFS(tblMovimientos[Monto],tblMovimientos[Cuenta_destino],tblCuentas[[#This Row],[Id_Cuenta]])-SUMIFS(tblMovimientos[Monto],tblMovimientos[Cuenta_origen],tblCuentas[[#This Row],[Id_Cuenta]])","v":624.89}]
[{"$f":"LEFT(tblCuentas[[#This Row],[Tipo_cuenta]],2)&\"_\"&LEFT(tblCuentas[[#This Row],[Nombre_cuenta]],5)","v":"Cr_DidiC"},"DidiCard","Crédito","Didi",6.9,"2025-12-01",{"$f":"tblCuentas[[#This Row],[Saldo_inicial]]+SUMIFS(tblMovimientos[Monto],tblMovimientos[Cuenta_destino],tblCuentas[[#This Row],[Id_Cuenta]])-SUMIFS(tblMovimientos[Monto],tblMovimientos[Cuenta_origen],tblCuentas[[#This Row],[Id_Cuenta]])","v":6.9},7,15,8000]
[{"$f":"LEFT(tblCuentas[[#This Row],[Tipo_cuenta]],2)&\"_\"&LEFT(tblCuentas[[#This Row],[Nombre_cuenta]],5)","v":"Cr_KlarC"},"KlarCard","Crédito","Klar",48.2,"2025-12-01",{"$f":"tblCuentas[[#This Row],[Saldo_inicial]]+SUMIFS(tblMovimientos[Monto],tblMovimientos[Cuenta_destino],tblCuentas[[#This Row],[Id_Cuenta]])-SUMIFS(tblMovimientos[Monto],tblMovimientos[Cuenta_origen],tblCuentas[[#This Row],[Id_Cuenta]])","v":48.2},24,4,2000]
[{"$f":"LEFT(tblCuentas[[#This Row],[Tipo_cuenta]],2)&\"_\"&LEFT(tblCuentas[[#This Row],[Nombre_cuenta]],5)","v":"Cr_Rappi"},"RappiCard","Crédito","Rappi",24.48,"2025-12-01",{"$f":"tblCuentas[[#This Row],[Saldo_inicial]]+SUMIFS(tblMovimientos[Monto],tblMovimientos[Cuenta_destino],tblCuentas[[#This Row],[Id_Cuenta]])-SUMIFS(tblMovimientos[Monto],tblMovimientos[Cuenta_origen],tblCuentas[[#This Row],[Id_Cuenta]])","v":24.48},15,5,6000]
[{"$f":"LEFT(tblCuentas[[#This Row],[Tipo_cuenta]],2)&\"_\"&LEFT(tblCuentas[[#This Row],[Nombre_cuenta]],5)","v":"Cr_Liver"},"Liverpool","Crédito","Liverpool",-1779.91,"2025-12-01",{"$f":"tblCuentas[[#This Row],[Saldo_inicial]]+SUMIFS(tblMovimientos[Monto],tblMovimientos[Cuenta_destino],tblCuentas[[#This Row],[Id_Cuenta]])-SUMIFS(tblMovimientos[Monto],tblMovimientos[Cuenta_origen],tblCuentas[[#This Row],[Id_Cuenta]])","v":-1779.91},16,15,6000]
[{"$f":"LEFT(tblCuentas[[#This Row],[Tipo_cuenta]],2)&\"_\"&LEFT(tblCuentas[[#This Row],[Nombre_cuenta]],5)","v":"Cr_Stori"},"StoriCard","Crédito","Stori",89.7,"2025-12-01",{"$f":"tblCuentas[[#This Row],[Saldo_inicial]]+SUMIFS(tblMovimientos[Monto],tblMovimientos[Cuenta_destino],tblCuentas[[#This Row],[Id_Cuenta]])-SUMIFS(tblMovimientos[Monto],tblMovimientos[Cuenta_origen],tblCuentas[[#This Row],[Id_Cuenta]])","v":9.7000000000000028},27,17,3300]

{"sheet":"Categorias","index":2,"n_rows":23,"n_cols":9,"rows_kept":23,"cut":false,"hidden":false,"merged":[]}
["Id_Categorias","Tipo","Nombre_categoria","Grupo"]
[{"$f":"LEFT(tblCategorias[[#This Row],[Tipo]],1)&\"_\"&tblCategorias[[#This Row],[Nombre_categoria]]","v":"A_"},"Ahorro",null,null,null,null,null,"Categoría grande","Qué incluye (ejemplos típicos)"]
[{"$f":"LEFT(tblCategorias[[#This Row],[Tipo]],1)&\"_\"&tblCategorias[[#This Row],[Nombre_categoria]]","v":"G_Educación / Niños"},"Gasto","Educación / Niños",null,null,null,null,"Vivienda","Renta o hipoteca, luz, agua, gas, internet, teléfono fijo, mantenimiento, predial, limpieza, muebles, etc."]
[{"$f":"LEFT(tblCategorias[[#This Row],[Tipo]],1)&\"_\"&tblCategorias[[#This Row],[Nombre_categoria]]","v":"G_Deudas / Créditos"},"Gasto","Deudas / Créditos",null,null,null,null,"Transporte / Carro","Gasolina, Uber/taxi, transporte público, seguro del auto, tenencias, verificaciones, refacciones, estacionamiento, peajes"]
[{"$f":"LEFT(tblCategorias[[#This Row],[Tipo]],1)&\"_\"&tblCategorias[[#This Row],[Nombre_categoria]]","v":"G_Entretenimiento / Ocio"},"Gasto","Entretenimiento / Ocio",null,null,null,null,"Alimentación","Despensa/supermercado, restaurantes, cafeterías, comida para llevar, comida del trabajo, agua embotellada, etc."]
[{"$f":"LEFT(tblCategorias[[#This Row],[Tipo]],1)&\"_\"&tblCategorias[[#This Row],[Nombre_categoria]]","v":"G_Cuidado personal / Belleza"},"Gasto","Cuidado personal / Belleza",null,null,null,null,"Salud","Médico, dentista, farmacia, lentes, estudios de laboratorio, seguro de gastos médicos, gimnasio, vitaminas"]
[{"$f":"LEFT(tblCategorias[[#This Row],[Tipo]],1)&\"_\"&tblCategorias[[#This Row],[Nombre_categoria]]","v":"G_Ropa y calzado"},"Gasto","Ropa y calzado",null,null,null,null,"Educación / Niños","Colegiaturas, útiles, clases extra, cursos, guardería, transporte escolar, uniformes"]
[{"$f":"LEFT(tblCategorias[[#This Row],[Tipo]],1)&\"_\"&tblCategorias[[#This Row],[Nombre_categoria]]","v":"G_Ahorro e inversión"},"Gasto","Ahorro e inversión",null,null,null,null,"Deudas / Créditos","Pago mínimo y pagos extras de tarjetas, préstamos personales, crédito hipotecario extra, crédito del carro"]
[{"$f":"LEFT(tblCategorias[[#This Row],[Tipo]],1)&\"_\"&tblCategorias[[#This Row],[Nombre_categoria]]","v":"G_Regalos y donativos"},"Gasto","Regalos y donativos",null,null,null,null,"Entretenimiento / Ocio","Netflix, Spotify, cine, salidas, bares, viajes/vacaciones, hobbies, juguetes, videojuegos"]
[{"$f":"LEFT(tblCategorias[[#This Row],[Tipo]],1)&\"_\"&tblCategorias[[#This Row],[Nombre_categoria]]","v":"G_Mascotas"},"Gasto","Mascotas",null,null,null,null,"Cuidado personal / Belleza","Peluquería, manicure, maquillaje, perfumes, cremas, ropa interior, productos de higiene personal"]
[{"$f":"LEFT(tblCategorias[[#This Row],[Tipo]],1)&\"_\"&tblCategorias[[#This Row],[Nombre_categoria]]","v":"G_Impuestos"},"Gasto","Impuestos",null,null,null,null,"Ropa y calzado","Ropa, zapatos, bolsas, accesorios (no incluye uniformes de trabajo ni niños que van en Educación)"]
[{"$f":"LEFT(tblCategorias[[#This Row],[Tipo]],1)&\"_\"&tblCategorias[[#This Row],[Nombre_categoria]]","v":"G_Varios / Otros"},"Gasto","Varios / Otros",null,null,null,null,"Ahorro e inversión","Aportaciones a Afore, fondo de emergencias, inversiones, retiro, cuenta de ahorro separada"]
[{"$f":"LEFT(tblCategorias[[#This Row],[Tipo]],1)&\"_\"&tblCategorias[[#This Row],[Nombre_categoria]]","v":"G_Transferencia a terceros"},"Gasto","Transferencia a terceros",null,null,null,null,"Regalos y donativos","Cumpleaños, bodas, Navidad, diezmos, donativos a ONGs"]
[{"$f":"LEFT(tblCategorias[[#This Row],[Tipo]],1)&\"_\"&tblCategorias[[#This Row],[Nombre_categoria]]","v":"G_Vivienda"},"Gasto","Vivienda",null,null,null,null,"Mascotas","Comida, veterinario, estética, juguetes, accesorios"]
[{"$f":"LEFT(tblCategorias[[#This Row],[Tipo]],1)&\"_\"&tblCategorias[[#This Row],[Nombre_categoria]]","v":"G_Transporte / Carro"},"Gasto","Transporte / Carro",null,null,null,null,"Impuestos personales","ISR extra, honorarios, declaración anual (lo que no se descuenta de nómina)"]
[{"$f":"LEFT(tblCategorias[[#This Row],[Tipo]],1)&\"_\"&tblCategorias[[#This Row],[Nombre_categoria]]","v":"G_Alimentación"},"Gasto","Alimentación",null,null,null,null,"Varios / Otros","Todo lo que no cabe en ninguna otra categoría (gastos imprevistos, multas, etc.)"]
[{"$f":"LEFT(tblCategorias[[#This Row],[Tipo]],1)&\"_\"&tblCategorias[[#This Row],[Nombre_categoria]]","v":"G_Salud"},"Gasto","Salud"]
[{"$f":"LEFT(tblCategorias[[#This Row],[Tipo]],1)&\"_\"&tblCategorias[[#This Row],[Nombre_categoria]]","v":"I_"},"Inversión"]
[{"$f":"LEFT(tblCategorias[[#This Row],[Tipo]],1)&\"_\"&tblCategorias[[#This Row],[Nombre_categoria]]","v":"I_Ideas Frescas"},"Ingreso","Ideas Frescas"]
[{"$f":"LEFT(tblCategorias[[#This Row],[Tipo]],1)&\"_\"&tblCategorias[[#This Row],[Nombre_categoria]]","v":"I_Didi Driver"},"Ingreso","Didi Driver"]
[{"$f":"LEFT(tblCategorias[[#This Row],[Tipo]],1)&\"_\"&tblCategorias[[#This Row],[Nombre_categoria]]","v":"T_Transferencia Interna"},"Transferencia","Transferencia Interna"]
[{"$f":"LEFT(tblCategorias[[#This Row],[Tipo]],1)&\"_\"&tblCategorias[[#This Row],[Nombre_categoria]]","v":"P_Pago_prestamo"},"Pago_prestamo","Pago_prestamo","Deuda"]
[{"$f":"LEFT(tblCategorias[[#This Row],[Tipo]],1)&\"_\"&tblCategorias[[#This Row],[Nombre_categoria]]","v":"I_CashBack"},"Ingreso","CashBack"]

{"sheet":"Prestamos","index":3,"n_rows":4,"n_cols":11,"rows_kept":4,"cut":false,"hidden":false,"merged":[]}
["Id_Prestamo","Nombre_prestamo","Entidad","Monto_inicial","Fecha_inicio","Plazo_meses","Tasa_anual","Pago_mensual_estimado","Total_pagado","Saldo_actual","Fecha_fin_estimada"]
[{"$f":"tblPrestamos[[#This Row],[Nombre_prestamo]]&\"_\"&LEFT(tblPrestamos[[#This Row],[Entidad]],2)","v":"DpVale_Pe"},"DpVale","Persona",5150,"2025-08-15",5,null,515,{"$f":"SUMIFS(tblMovimientos[Monto],tblMovimientos[Id_Prestamo],tblPrestamos[[#This Row],[Id_Prestamo]],tblMovimientos[Tipo_mov],\"Pago_prestamo\")","v":3090},{"$f":"tblPrestamos[[#This Row],[Monto_inicial]]-tblPrestamos[[#This Row],[Total_pagado]]","v":2060},{"$f":"EDATE(tblPrestamos[[#This Row],[Fecha_inicio]],tblPrestamos[[#This Row],[Plazo_meses]])","v":"2026-01-15"}]
[{"$f":"tblPrestamos[[#This Row],[Nombre_prestamo]]&\"_\"&LEFT(tblPrestamos[[#This Row],[Entidad]],2)","v":"BancoAzteca_Ba"},"BancoAzteca","Banco",17849,"2025-01-13",25,null,224,{"$f":"SUMIFS(tblMovimientos[Monto],tblMovimientos[Id_Prestamo],tblPrestamos[[#This Row],[Id_Prestamo]],tblMovimientos[Tipo_mov],\"Pago_prestamo\")","v":10304},{"$f":"tblPrestamos[[#This Row],[Monto_inicial]]-tblPrestamos[[#This Row],[Total_pagado]]","v":7545},{"$f":"EDATE(tblPrestamos[[#This Row],[Fecha_inicio]],tblPrestamos[[#This Row],[Plazo_meses]])","v":"2027-02-13"}]
[{"$f":"tblPrestamos[[#This Row],[Nombre_prestamo]]&\"_\"&LEFT(tblPrestamos[[#This Row],[Entidad]],2)","v":"MercadoPago_Ba"},"MercadoPago","Banco",{"$f":"1877.97*6","v":11267.82},"2025-07-01",6,null,1877.87,{"$f":"SUMIFS(tblMovimientos[Monto],tblMovimientos[Id_Prestamo],tblPrestamos[[#This Row],[Id_Prestamo]],tblMovimientos[Tipo_mov],\"Pago_prestamo\")","v":9389},{"$f":"tblPrestamos[[#This Row],[Monto_inicial]]-tblPrestamos[[#This Row],[Total_pagado]]","v":1878.8199999999997},{"$f":"EDATE(tblPrestamos[[#This Row],[Fecha_inicio]],tblPrestamos[[#This Row],[Plazo_meses]])","v":"2026-01-01"}]

{"sheet":"Movimientos","index":4,"n_rows":8,"n_cols":12,"rows_kept":8,"cut":false,"hidden":false,"merged":[]}
["Id_Mov","Fecha","Año","Mes","Periodo","Tipo_mov","Monto","Id_Categoria","Cuenta_origen","Cuenta_destino","Id_Prestamo","Descripcion"]
[1,"2025-12-01",2025,12,"2025-12","Pago_prestamo",10304,"P_Pago_prestamo","Ef_Carte",null,"BancoAzteca_Ba"]
[2,"2025-12-01",2025,12,"2025-12","Ingreso",10304,"I_Didi Driver",null,"Ef_Carte"]
[3,"2025-12-01",2025,12,"2025-12","Pago_prestamo",3090,"P_Pago_prestamo","Dé_BanCo",null,"DpVale_Pe"]
[4,"2025-12-01",2025,12,"2025-12","Pago_prestamo",9389,"P_Pago_prestamo","Dé_BanCo",null,"MercadoPago_Ba"]
[5,"2025-12-01",2025,12,"2025-12","Ingreso",12479,"I_Ideas Frescas",null,"Dé_BanCo"]
[6,"2025-12-04",2025,12,"2025-12","Gasto",80,"G_Alimentación","Cr_Stori"]
[7,"2025-12-04",2025,12,"2025-12","Ingreso",0.39,"CashBack",null,"Dé_Stori"]